Cogmind - Beta 10.1 @@@ ROGUE MODE // 2021.06.12 @ 00:20:22 // Winter2019/RPGLIKE Player: Farfid Result: Heading to fleet! Performance ------------- Evolutions (9) 4500 Regions Visited (28) 5600 Robots Destroyed (984) 4920 Value Destroyed (56972) 56972 Prototype IDs (114) 2280 Alien Tech Used (6) 1200 Bonus (58347) 58347 TOTAL SCORE: 133819 Bonus ------- Triggered High Security 1500 High Alert Combat Kills 40190 Follower Combat Kills 1610 Network Hubs Disabled 800 Aligned with FarCom 300 Met Data Miner 300 Met Zhirov 300 Built Enhanced Grunts 300 A7 Reached Mainframe 300 Met R17 at Cetus 500 Used Core Reset Matrix 3000 Destroyed MAIN.C Guards 500 Met MAIN.C 5000 Destroyed MAIN.C Shell 5000 Win 3000 Friendly Fire -4253 Cogmind --------- Core Integrity 1453/2400 Matter 350/350 Energy 1358/1380 System Corruption 1% Temperature Cool (20) Movement Hovering (36) Location To Fleet Rendezvous Parts ------- > --- POWER (2) -------- Zero-point Reactor Zero-point Reactor > --- PROPULSION (6) --- Improved Antigrav System Improved Antigrav System Improved Antigrav System Improved Antigrav System Cooled Linear Gravjet Combat Linear Gravjet > --- UTILITY (11) ----- Advanced Power Amplifier Experimental Energy Well Experimental Signal Interpreter Experimental Terrain Scanner Experimental Target Analyzer Precision Matter Filter Advanced Kinecellerator Advanced Weapon Cycler Experimental Shield Generator Long-range Tractor Beam > --- WEAPON (6) ------- XL Autogun Array 8R-AWN's Boregun 8R-AWN's Boregun > --- INVENTORY (7) ---- Energy Filter System Restoration Module Transdimensional Reconstructor Matter Drive Tesla Bomb Launcher Peak State ------------ > --- POWER ------------ Zero-point Reactor Zero-point Reactor > --- PROPULSION ------- Improved Antigrav System Improved Antigrav System Improved Antigrav System Improved Antigrav System Cooled Linear Gravjet Combat Linear Gravjet > --- UTILITY ---------- Advanced Power Amplifier Experimental Energy Well Experimental Signal Interpreter Experimental Target Analyzer Precision Matter Filter Advanced Kinecellerator Advanced Weapon Cycler Experimental Shield Generator Long-range Tractor Beam Matter Drive > --- WEAPON ----------- XL Autogun Array 8R-AWN's Boregun Multirail > --- INVENTORY -------- Protomatter Experimental Terrain Scanner Energy Filter Thermal Barrier System Restoration Module Transdimensional Reconstructor Tesla Bomb Launcher [Rating: 225] Favorites ----------- Power Zero-point Reactor Engine Cooled Deuterium Engine Power Core Micro Fission Core Reactor Zero-point Reactor Propulsion Improved Antigrav System Leg Advanced Myomer Leg Wheel Wheel Hover Unit Improved Antigrav System Flight Unit Nuclear Pulse Thruster Utility Advanced Weapon Cycler Device Advanced Weapon Cycler Storage Experimental Energy Well Processor Experimental Signal Interpreter Hackware Makeshift Hacking Suite Protection Light Armor Plating Artifact Matter Drive Weapon XL Autogun Array Energy Gun Sigix Quantum Sheargun Energy Cannon Potential Cannon Ballistic Gun XL Autogun Array Ballistic Cannon Omega Cannon Launcher Tesla Bomb Launcher Special Weapon Advanced Remote Datajack Slashing Weapon Vibroblade Build | -11 -10 -10 -9 -9 -9 -8 -8 -7 -7 -7 -7 -6 -6 -6 -6 -6 -6 -5 -5 -5 -4 -3 -3 -3 -2 -2 -1 -1 ------- Run | Scr Mat Min Mat Min Exi Min Mat Fac Low Low Dat Pro Fac Ext Cet Arc Hub Fac Was Fac Fac Res Qua Sec Res Tes Acc Com Slots Evolved 21 | 3 . . 1 . 2 . 1 1 . 1 . 1 3 1 . . . . . . 1 1 1 1 . . 2 1 Power 1 | . . . . . . . . . . . . . . . . . . . . . . 1 . . . . . . Propulsion 5 | 1 . . . . . . . 1 . . . 1 . . . . . . . . . . . 1 . . 1 . Utility 10 | 1 . . 1 . . . 1 . . 1 . . 3 . . . . . . . 1 . . . . . 1 1 Weapon 5 | 1 . . . . 2 . . . . . . . . 1 . . . . . . . . 1 . . . . . Parts Attached 222 | 5 6 5 5 3 14 1 . 5 1 4 . 13 9 1 1 . . 3 2 6 10 2 8 13 8 12 2 83 Power 16 | 1 2 . 1 . . 1 . 2 . . . . . . 1 . . . . . . 1 . 2 . . . 5 Engine 6 | 1 1 . 1 . . 1 . 2 . . . . . . . . . . . . . . . . . . . . Core 2 | . 1 . . . . . . . . . . . . . . . . . . . . 1 . . . . . . Reactor 8 | . . . . . . . . . . . . . . . 1 . . . . . . . . 2 . . . 5 Propulsion 35 | 2 . 2 . . 2 . . 1 . . . 7 4 . . . . . . 2 . 1 1 1 1 . . 11 Treads . | . . . . . . . . . . . . . . . . . . . . . . . . . . . . . Leg 1 | . . . . . 1 . . . . . . . . . . . . . . . . . . . . . . . Wheel 2 | 2 . . . . . . . . . . . . . . . . . . . . . . . . . . . . Hover 27 | . . 2 . . 1 . . 1 . . . 3 4 . . . . . . 2 . 1 1 1 1 . . 10 Flight 5 | . . . . . . . . . . . . 4 . . . . . . . . . . . . . . . 1 Utility 120 | . 2 3 . . 4 . . 2 1 3 . 3 5 . . . . 3 2 3 10 . 6 8 7 7 2 49 Device 86 | . . 1 . . 4 . . 1 1 2 . 3 4 . . . . 1 2 2 9 . 5 5 5 5 1 35 Storage 8 | . . . . . . . . . . . . . . . . . . 1 . 1 . . . . . 2 1 3 Processor 13 | . 1 2 . . . . . 1 . . . . 1 . . . . 1 . . 1 . . . . . . 6 Hackware 1 | . . . . . . . . . . 1 . . . . . . . . . . . . . . . . . . Protection 2 | . 1 . . . . . . . . . . . . . . . . . . . . . . . . . . 1 Artifact 10 | . . . . . . . . . . . . . . . . . . . . . . . 1 3 2 . . 4 Weapon 51 | 2 2 . 4 3 8 . . . . 1 . 3 . 1 . . . . . 1 . . 1 2 . 5 . 18 Energy Gun 1 | . . . . . . . . . . . . . . . . . . . . . . . . 1 . . . . Energy Cannon 1 | . . . . . . . . . . . . . . . . . . . . . . . . . . 1 . . Ballistic Gun 32 | 2 2 . 2 2 6 . . . . 1 . 3 . . . . . . . . . . 1 1 . 2 . 10 Ballistic Cannon 2 | . . . . . . . . . . . . . . . . . . . . . . . . . . 2 . . Launcher 12 | . . . 2 1 2 . . . . . . . . 1 . . . . . 1 . . . . . . . 5 Special Weapon 2 | . . . . . . . . . . . . . . . . . . . . . . . . . . . . 2 Impact Weapon . | . . . . . . . . . . . . . . . . . . . . . . . . . . . . . Slashing Weapon 1 | . . . . . . . . . . . . . . . . . . . . . . . . . . . . 1 Piercing Weapon . | . . . . . . . . . . . . . . . . . . . . . . . . . . . . . Special Melee Weapon . | . . . . . . . . . . . . . . . . . . . . . . . . . . . . . Unidentified Prototypes 48 | . . 1 1 . 5 . . 1 . . . . 2 . . . . 1 . 3 4 . 1 5 2 4 1 17 Parts Lost . | . . . . . . . . . . . . . . . . . . . . . . . . . . . . . Power . | . . . . . . . . . . . . . . . . . . . . . . . . . . . . . Propulsion . | . . . . . . . . . . . . . . . . . . . . . . . . . . . . . Utility . | . . . . . . . . . . . . . . . . . . . . . . . . . . . . . Weapon . | . . . . . . . . . . . . . . . . . . . . . . . . . . . . . Highest Loss Streak . | . . . . . . . . . . . . . . . . . . . . . . . . . . . . . Average Slot Usage (%) 80 | . 82 99 94 87 69 70 70 74 75 73 61 70 81 82 83 83 83 81 83 83 83 83 79 72 72 71 71 82 Engine 2 | . 13 . 1 12 10 10 10 8 8 7 7 7 5 5 2 . . . . . . . . . . . . . Reactor 4 | . . . . . . . . . . . . . . . 2 5 5 5 5 5 5 5 4 6 9 9 8 7 Hover 20 | . . 23 26 25 21 20 20 24 25 23 15 13 21 22 22 22 22 22 22 22 21 20 16 13 13 13 12 22 Device 25 | . . . 13 12 13 20 20 16 24 23 23 25 34 33 33 33 33 28 27 27 33 35 30 27 27 26 26 28 Processor 7 | . 7 20 13 12 10 10 10 15 8 6 . . 2 5 5 5 5 7 11 11 10 10 7 4 4 4 4 4 Hackware 1 | . . . . . . . . . . 3 7 7 5 5 5 5 5 5 5 5 1 . . . . . . . Artifact 1 | . . . . . . . . . . . . . . . . . . . . . . . 2 3 3 4 4 3 Ballistic Gun 9 | . 28 28 25 24 12 10 10 8 8 7 7 6 5 5 5 5 5 5 5 5 5 5 7 9 9 8 8 9 Launcher 2 | . . . 1 . 1 . . . . . . . . 4 5 5 5 5 5 5 5 5 4 4 4 4 4 2 Naked Turns . | . . . . . . . . . . . . . . . . . . . . . . . . . . . . . Heaviest Build 98 | 6 16 15 21 21 28 29 29 29 31 31 31 31 37 44 53 53 53 53 55 61 69 74 85 89 89 98 93 96 Greatest Support 132 | 31 31 49 49 49 49 49 49 60 60 60 38 50 92 85 85 85 85 85 97 85 85 95 95 97 100 100 100 132 Greatest Overweight (x) 7 | . . . . . . . . . . . . 1 . . . . . . . . . . . . . . . 7 Average Overweight (x) . | . . . . . . . . . . . . . . . . . . . . . . . . . . . . . Largest Inventory Capacity 7 | 1 1 1 1 1 3 3 3 3 3 4 4 4 4 4 4 4 4 4 4 5 5 5 5 7 7 7 7 7 Average Capacity 4 | . 1 1 1 1 1 3 3 3 3 3 4 4 4 4 4 4 4 4 4 4 5 5 5 5 7 7 7 7 Most Carried 7 | . 1 1 1 1 3 3 3 3 3 4 4 4 4 4 4 4 4 4 4 5 5 5 5 6 7 7 7 7 Average Carried 4 | . . 1 1 1 1 3 3 3 3 3 4 3 4 4 4 4 3 3 4 4 4 5 4 5 6 7 7 6 Final Capacity 7 | 1 1 1 1 1 3 3 3 3 3 4 4 4 4 4 4 4 4 4 4 5 5 5 5 7 7 7 7 7 Final Carried 7 | . 1 1 1 1 3 3 3 3 3 4 4 4 4 4 4 4 2 4 4 5 5 5 5 6 7 7 7 6 Class Distribution -------------------- 22% | Gunner 20% | Alien-Scout 14% | Hacker-Scout 10% | Scavenger-Mutant 9% | Mutant 6% | Scout 5% | Scavenger-Scout 4% | Scavenger-Executioner 3% | Hacker-Gunner Dominant Class ---------------- Mutant | -10/Materials Mutant | -10/Mines Mutant | -9/Materials Mutant | -9/Mines Gunner | -9/Exiles Gunner | -8/Mines Gunner | -8/Materials Gunner | -7/Factory Gunner | -7/Lower Caves Gunner | -7/Lower Caves Mutant | -7/Data Miner Gunner | -6/Proximity Caves Gunner | -6/Factory Hacker-Scout | -6/Extension Commander-Scout | -6/Cetus Commander-Scout | -6/Archives Hacker-Scout | -6/Hub_04(d) Hacker-Scout | -5/Factory Hacker-Gunner | -5/Waste Hacker-Gunner | -5/Factory Scout | -4/Factory Scout | -3/Research Hacker-Scout | -3/Quarantine Alien-Scout | -3/Section 7 Alien-Scout | -2/Research Alien-Scout | -2/Testing Alien-Scout | -1/Access Alien-Scout | -1/Command Resources | -11 -10 -10 -9 -9 -9 -8 -8 -7 -7 -7 -7 -6 -6 -6 -6 -6 -6 -5 -5 -5 -4 -3 -3 -3 -2 -2 -1 -1 ----------- Run | Scr Mat Min Mat Min Exi Min Mat Fac Low Low Dat Pro Fac Ext Cet Arc Hub Fac Was Fac Fac Res Qua Sec Res Tes Acc Com Matter Collected 18930 | 250 147 161 249 120 226 335 270 565 150 197 . 960 545 565 152 . 570 220 270 319 1703 98 . 620 180 221 334 9503 Remotely 16969 | . . . . . . . . 565 150 197 . 960 523 565 152 . 570 220 270 280 1703 98 . 620 180 100 313 9503 Salvage Created 56290 | . 296 58 518 120 14 478 409 997 380 267 . 1315 879 1308 63 . 599 697 712 755 5980 120 . 682 190 270 727 38456 Parts 2463 | . 19 5 36 16 . 15 32 53 24 17 . 57 45 86 12 . 57 30 17 22 285 11 . 33 22 29 36 1504 Haulers Intercepted 19 | . 1 . 2 . . . 1 2 . . . . 1 1 . . . 2 . 3 5 . . . . . 1 . Recyclers Shooed 3 | . . . . . . . . . . . . . . . . . . 2 . . . . . . . 1 . . Parts Field Recycled . | . . . . . . . . . . . . . . . . . . . . . . . . . . . . . Retrieved Matter . | . . . . . . . . . . . . . . . . . . . . . . . . . . . . . Parts Self-Destructed 94 | . . . . . . . . . 17 17 . 60 . . . . . . . . . . . . . . . . Prevented . | . . . . . . . . . . . . . . . . . . . . . . . . . . . . . Kills | -11 -10 -10 -9 -9 -9 -8 -8 -7 -7 -7 -7 -6 -6 -6 -6 -6 -6 -5 -5 -5 -4 -3 -3 -3 -2 -2 -1 -1 ------- Run | Scr Mat Min Mat Min Exi Min Mat Fac Low Low Dat Pro Fac Ext Cet Arc Hub Fac Was Fac Fac Res Qua Sec Res Tes Acc Com Combat Hostiles Destroyed 829 | . 5 5 12 9 4 7 11 14 8 9 . 32 15 19 2 . 15 5 4 5 107 2 . 10 3 4 2 520 Melee 1 | . . . . . . . . . . . . . . . . . . . . . . . . . . . . 1 Guns 395 | . 5 5 8 6 . 7 11 14 8 9 . 32 15 19 2 . 15 5 4 5 58 2 . 7 3 4 2 149 AOE 218 | . . . 4 3 4 . . . . . . . . . . . . . . . 28 . . . . . . 179 Classes Destroyed 28 | . 5 3 3 1 . . 1 1 1 . . 3 1 . . . 1 . 1 . . . . 2 . . . 5 Worker 21 | . . 1 2 . . . . . . . . . 1 1 . . 2 . . . 1 . . . 1 . 3 9 Builder 5 | . . . 1 . . . . . . . . . . 3 . . . . . . . . . . . . 1 . Tunneler 1 | . . 1 . . . . . . . . . . . . . . . . . . . . . . . . . . Hauler 19 | . 1 . 2 . . . 1 2 . . . . 1 1 . . . 2 . 3 5 . . . . . 1 . Recycler 19 | . . . 2 . . 1 . 1 . . . . . 2 . . . 1 . . . . . 1 . 1 1 9 Mechanic 21 | . 1 . . . . . . . . . . . . . . . . . . . 1 . . . . . . 19 Operator 4 | . . . . . . . . . . . . . . . . . 1 . . . . . . . . . . 3 Drone 1 | . . . . . . . . . . . . . . . . . . . . . . . . . . . . 1 Watcher 39 | . 2 . 1 . . . 1 3 . . . . 1 2 2 . 4 2 . 1 4 . . . 2 . 5 9 Swarmer 115 | . 2 . 9 6 . . 6 4 . 4 . 8 . 6 . . . . . . 12 . . 3 . 1 . 54 Saboteur 38 | . . . . . . . . . . . . 1 . . . . . . . . 7 . . . . . . 30 Grunt 259 | . 3 1 2 2 . 6 3 5 . 2 . 15 8 2 . . 5 1 . 2 51 . . 1 . . . 150 Brawler 46 | . . . . 1 . . . . . . . 1 . . . . . . . . 8 . . . . . . 36 Duelist 51 | . . . . . . . 1 . . . . 4 1 . . . 1 . . . 4 . . . . . . 40 Protector 26 | . . . . . . . . . . . . . 1 . . . . . . . 4 . . . . . . 21 Sentry 48 | . . . 1 . . . 1 4 1 1 . 1 2 8 . . 7 1 . 2 10 1 . 1 2 . . 5 Demolisher 12 | . . . . . . . . . . . . . . . . . . . . . . . . . . . . 12 Specialist 11 | . . . . . . . . . . . . . . . . . . . . . . . . . . . . 11 Hunter 72 | . . . . . . . . . 2 1 . . 1 . . . 2 . . 1 6 . . . . . 2 57 Programmer 78 | . . . . . . . . 1 1 1 . . 2 1 . . . 3 . . 5 . . . 1 3 . 60 Behemoth 7 | . . . . . . . . . . . . 1 . 2 . . . . . . . 1 . . . . . 3 Compactor 4 | . . . . . . . . . . . . . . . . . . . 4 . . . . . . . . . Cetus Guard 2 | . . . . . . . . . . . . . . . 2 . . . . . . . . . . . . . S7 Guard 1 | . . . . . . . . . . . . . . . . . . . . . . . . 1 . . . . M Guard 2 | . . . . . . . . . . . . . . . . . . . . . . . . . . . . 2 Combat Programmer 2 | . . . . . . . . . . . . . . . . . . . . . . . . . . . . 2 Investigator 1 | . . . . . . . . . . . . . . . . . . . . . . . . . . . . 1 Striker 20 | . . . . . . . . . . . . . . . . . . . . . . . . 2 . . . 18 Executioner 17 | . . . . . . . . . . . . . . . . . . . . . . . . 2 . . . 15 Alpha 7 2 | . . . . . . . . . . . . . . . . . . . . . . . . . . . . 2 Master Thief 1 | . . . . . . . . . . . . 1 . . . . . . . . . . . . . . . . Assembled 28 | . . 4 . . 7 . . . . . . . . . . . . . . . . . . . . . . 17 Surgeon 1 | . . . . . . . . . . . . . . . . . . . . . 1 . . . . . . . Wasp 2 | . . . . . . . . . . . . . . . . . . . . 1 1 . . . . . . . Thug 5 | . . . . . . . . . 4 . . . . 1 . . . . . . . . . . . . . . Butcher 1 | . . . . . . . . . . . . . . 1 . . . . . . . . . . . . . . Best Kill Streak 71 | . 4 4 8 8 4 3 5 4 4 4 . 9 5 10 3 . 7 7 4 4 38 1 . 3 3 4 8 71 Combat Bots Only 71 | . 2 4 6 3 4 3 4 4 4 4 . 9 5 5 2 . 6 4 4 2 29 1 . 3 1 4 2 71 Max Kills in Single Turn 12 | . 1 2 4 3 3 2 1 1 1 2 . 2 2 2 1 . 2 1 1 2 3 1 . 2 2 2 2 12 Gunslinging 1 | . . 1 1 . . . . . . . . . . . . . . . . . . . . . . . . 1 Exploded 11 | . . . 2 3 1 . . . . . . . . . . . . . . . 3 . . . . . . 11 Melee 1 | . . . . . . . . . . . . . . . . . . . . . . . . . . . . 1 Uniques/NPCs Destroyed 3 | . . . . . 1 1 . . . . . . . . . . . . . . . . . . . . . 1 8R-AWN (-9/Exiles) 12-ASH (-8/Mines) MAIN.C Shell (-1/Command) Combat | -11 -10 -10 -9 -9 -9 -8 -8 -7 -7 -7 -7 -6 -6 -6 -6 -6 -6 -5 -5 -5 -4 -3 -3 -3 -2 -2 -1 -1 -------- Run | Scr Mat Min Mat Min Exi Min Mat Fac Low Low Dat Pro Fac Ext Cet Arc Hub Fac Was Fac Fac Res Qua Sec Res Tes Acc Com Damage Taken 17625 | . 282 174 312 96 294 436 86 169 130 82 . 893 199 229 214 . 885 52 . 42 1687 116 63 380 325 65 214 10200 Core 14077 | . 224 143 249 75 234 352 66 137 103 68 . 738 159 188 175 . 718 49 . 33 1356 92 49 300 266 51 184 8068 Absorbed by Shields 3938 | . . . . . . . . . . . . . . 44 90 . . . . . 96 12 12 . . . . 3684 Redirected to Core 12198 | . 178 108 199 70 202 293 66 109 94 45 . 526 128 133 133 . 607 12 . 33 1154 92 49 286 218 51 104 7308 Core Remaining (%) 88 | 100 . 100 . . . 61 94 . . . . 95 . . . . 73 . . 100 100 . . 93 . 100 . 60 Volleys Fired 1646 | . 23 12 24 11 6 21 19 30 17 16 . 82 46 53 15 . 57 20 22 11 185 18 5 43 17 14 27 852 Largest 3 | . 2 2 2 2 1 1 1 1 1 1 . 1 1 1 1 . 1 1 1 1 1 1 1 1 1 1 2 3 Hottest 200 | . 46 46 46 46 60 60 60 60 60 60 . 60 60 60 60 . 60 60 60 60 60 60 60 100 60 200 90 120 Shots Fired 2520 | . 46 24 46 21 6 21 19 30 17 16 . 80 46 53 15 . 57 20 22 14 185 18 5 43 17 14 38 1647 Gun 2214 | . 46 24 44 20 1 21 19 30 17 16 . 80 46 53 13 . 57 20 22 12 140 18 5 37 17 13 38 1405 Cannon 1 | . . . . . . . . . . . . . . . . . . . . . . . . . . 1 . . Launcher 303 | . . . 2 1 5 . . . . . . . . . 2 . . . . 2 45 . . 6 . . . 240 Special 2 | . . . . . . . . . . . . . . . . . . . . . . . . . . . . 2 Kinetic 2212 | . 46 24 44 20 1 21 19 30 17 16 . 80 46 53 13 . 57 20 22 12 140 18 5 35 17 13 38 1405 Thermal 1 | . . . . . . . . . . . . . . . . . . . . . . . . . . 1 . . Explosive 8 | . . . 2 1 5 . . . . . . . . . . . . . . . . . . . . . . . Electromagnetic 295 | . . . . . . . . . . . . . . . 2 . . . . 2 45 . . 6 . . . 240 Slashing 2 | . . . . . . . . . . . . . . . . . . . . . . . . 2 . . . . Robot Hit Streak 109 | . 13 6 14 18 9 12 19 32 18 10 . 13 16 24 16 . 22 20 50 21 50 31 . 21 8 16 17 109 Robot Miss Streak 7 | . 2 6 5 7 . 2 3 3 3 3 . 7 5 3 2 . 4 4 2 2 3 1 . 6 2 2 4 7 Penetration Max 2 | . . . . . . . . . . . . . . . . . . . . . . . . . 2 . 1 2 Secondary Targets 22 | . 1 2 3 1 . . . . . . . . . . . . . . . . . . . . . . . 15 Max Gunslinging Chain 1 | . 1 1 1 1 . . . . . . . . . . . . . . . . . . . . . . . 1 Shots Hit Robots 1988 | . 33 19 37 14 6 21 18 27 15 16 . 74 40 52 14 . 36 17 20 13 168 15 . 25 12 7 31 1258 Core Hits 2106 | . 17 13 28 12 14 18 17 35 15 12 . 61 37 46 16 . 41 21 20 16 240 9 . 23 11 9 24 1351 Critical Hits 472 | . . . 1 . . . . . . . . . . . . . . . . . . . . . 1 . 3 467 Critical Kills 60 | . . . . . . . . . . . . . . . . . . . . . . . . . 1 . 2 57 Critical Parts Destroyed 140 | . . . 1 . . . . . . . . . . . . . . . . . . . . . . . 1 138 Melee Attacks . | . . . . . . . . . . . . . . . . . . . . . . . . . . . . . Impact . | . . . . . . . . . . . . . . . . . . . . . . . . . . . . . Slashing . | . . . . . . . . . . . . . . . . . . . . . . . . . . . . . Piercing . | . . . . . . . . . . . . . . . . . . . . . . . . . . . . . Sneak Attacks . | . . . . . . . . . . . . . . . . . . . . . . . . . . . . . Combat Hostiles . | . . . . . . . . . . . . . . . . . . . . . . . . . . . . . Follow-up Attacks . | . . . . . . . . . . . . . . . . . . . . . . . . . . . . . Damage Inflicted 158894 | . 393 230 1079 377 588 1334 962 1927 1074 545 . 4502 2711 3840 1168 . 2805 1754 2435 1207 18191 1371 . 2170 1078 655 1516 104982 Guns 97420 | . 393 230 578 190 103 1334 962 1927 1074 538 . 4502 2711 3840 961 . 2494 1754 2435 1081 11786 1371 . 1747 1078 655 1516 52160 Cannons . | . . . . . . . . . . . . . . . . . . . . . . . . . . . . . Explosions 61467 | . . . 501 187 485 . . . . . . . . . 207 . 311 . . 126 6405 . . 423 . . . 52822 Melee . | . . . . . . . . . . . . . . . . . . . . . . . . . . . . . Ramming 7 | . . . . . . . . . . 7 . . . . . . . . . . . . . . . . . . Kinetic 97420 | . 393 230 578 190 103 1334 962 1927 1074 538 . 4502 2711 3840 961 . 2494 1754 2435 1081 11786 1371 . 1747 1078 655 1516 52160 Thermal 12492 | . . . . . . . . . . . . . . . . . . . . . 663 . . . . . . 11829 Explosive 1243 | . . . 501 187 485 . . . . . . . . . . . . . . 70 . . . . . . . . Electromagnetic 47732 | . . . . . . . . . . . . . . . 207 . 311 . . 56 5742 . . 423 . . . 40993 Impact . | . . . . . . . . . . . . . . . . . . . . . . . . . . . . . Slashing . | . . . . . . . . . . . . . . . . . . . . . . . . . . . . . Piercing . | . . . . . . . . . . . . . . . . . . . . . . . . . . . . . Highest Corruption 17 | . . . . . . . . 2 2 2 2 2 . . . . 4 4 17 16 . . . . 2 2 . 14 Average Corruption 4 | . . . . . . . . 1 2 2 2 2 . . . . 3 2 11 13 . . . . 2 2 . 5 Corruption Purged 32 | . . . . . . . . . . . . . . . . . . . 2 4 . . . . . . . 26 Effects 187 | . . . . . . . . 3 3 1 . 7 . . . . 1 2 10 18 . . . . 1 . . 141 Message Errors 41 | . . . . . . . . . . 1 . 2 . . . . . 1 3 4 . . . . . . . 30 Matter Fused 14 | . . . . . . . . . . . . . . . . . . . . 3 . . . . . . . 11 Heat Flow Errors 13 | . . . . . . . . . 1 . . 1 . . . . . 1 1 1 . . . . . . . 8 Energy Discharges 23 | . . . . . . . . 3 2 . . 1 . . . . . . 3 2 . . . . . . . 12 Parts Rejected 1 | . . . . . . . . . . . . . . . . . . . . . . . . . . . . 1 Data Loss (minor) 10 | . . . . . . . . . . . . . . . . . . . 1 . . . . . . . . 9 Data Loss (major) 3 | . . . . . . . . . . . . . . . . . . . . 1 . . . . . . . 2 Misfires 6 | . . . . . . . . . . . . . . . . . . . . 3 . . . . . . . 3 Alerts 1 | . . . . . . . . . . . . . . . . . . . . 1 . . . . . . . . Misdirections 9 | . . . . . . . . . . . . . . . . . . . . 2 . . . . . . . 7 Targeting Errors 56 | . . . . . . . . . . . . 1 . . . . 1 . 2 1 . . . . 1 . . 50 Weapon Failures 10 | . . . . . . . . . . . . 2 . . . . . . . . . . . . . . . 8 Overload Shots . | . . . . . . . . . . . . . . . . . . . . . . . . . . . . . Overflow Damage 1106 | . . . 75 . 19 . . . . . . . . . . . 4 . . 1 90 . . . . . . 917 Projectiles . | . . . . . . . . . . . . . . . . . . . . . . . . . . . . . Explosions 1106 | . . . 75 . 19 . . . . . . . . . . . 4 . . 1 90 . . . . . . 917 Melee . | . . . . . . . . . . . . . . . . . . . . . . . . . . . . . Knockbacks . | . . . . . . . . . . . . . . . . . . . . . . . . . . . . . Impact . | . . . . . . . . . . . . . . . . . . . . . . . . . . . . . Kinetic . | . . . . . . . . . . . . . . . . . . . . . . . . . . . . . Secondary . | . . . . . . . . . . . . . . . . . . . . . . . . . . . . . Self-Inflicted Damage 780 | . . . . 15 7 . . . . 3 . . . . . . 398 . . 27 46 . . . . . . 284 Shots 20 | . . . . 1 1 . . . . . . . . . . . 4 . . 1 2 . . . . . . 11 Rammed 1 | . . . . . . . . . . 1 . . . . . . . . . . . . . . . . . . Targets Rammed 1 | . . . . . . . . . . 1 . . . . . . . . . . . . . . . . . . Kicked . | . . . . . . . . . . . . . . . . . . . . . . . . . . . . . Crushed . | . . . . . . . . . . . . . . . . . . . . . . . . . . . . . Highest Temperature 366 | . 43 5 7 2 41 366 163 72 90 90 . 196 47 38 38 . 42 179 52 100 47 35 . 6 . . . 212 Average Temperature 52 | . 25 5 3 2 22 119 59 13 36 41 . 40 25 27 32 . 29 103 28 55 25 21 . 6 . . . 61 Received Heat Transfer 1658 | . 105 6 48 36 . 144 36 30 36 . . 261 54 51 39 . 51 9 . 9 273 32 . 27 9 . . 402 Siege Activations . | . . . . . . . . . . . . . . . . . . . . . . . . . . . . . Robots Corrupted 221 | . . . . . . . . . . . . . . . . . . . . . 21 . . 3 . . . 197 Combat Hostiles 215 | . . . . . . . . . . . . . . . . . . . . . 21 . . 3 . . . 191 Parts Fried 396 | . . . . . . . . . . . . . . . . . . . . . 53 . . 3 . . . 340 Impact Corruptions . | . . . . . . . . . . . . . . . . . . . . . . . . . . . . . Robots Melted . | . . . . . . . . . . . . . . . . . . . . . . . . . . . . . Combat Hostiles . | . . . . . . . . . . . . . . . . . . . . . . . . . . . . . Parts Melted 8 | . . . . . . . . . . . . . . . . . . . . . 1 . . . . . . 7 Heat Transferred 9375 | . . . . . . . . . . . . . . . . . . . . . 450 . . . . . . 8925 Parts Sabotaged 2 | . . . . . . . . . . . . . . . . . . . . . . . . . . . . 2 Parts Stolen 5 | . . . . . . . . . . 1 . 4 . . . . . . . . . . . . . . . . Parts Stripped . | . . . . . . . . . . . . . . . . . . . . . . . . . . . . . Power Chain Reactions 76 | . . . . . . . . . . . . . . . . . . . . . 9 . . . . . . 67 Missiles Intercepted . | . . . . . . . . . . . . . . . . . . . . . . . . . . . . . Alert | -11 -10 -10 -9 -9 -9 -8 -8 -7 -7 -7 -7 -6 -6 -6 -6 -6 -6 -5 -5 -5 -4 -3 -3 -3 -2 -2 -1 -1 ------- Run | Scr Mat Min Mat Min Exi Min Mat Fac Low Low Dat Pro Fac Ext Cet Arc Hub Fac Was Fac Fac Res Qua Sec Res Tes Acc Com Peak Influence 11539 | . 111 53 346 334 . 146 367 344 . . . . 680 463 464 186 1081 862 258 758 3724 1960 1100 465 225 229 278 11539 Initial 1954 | . . 33 . 134 . . . 46 . . . . 422 104 180 185 65 529 236 180 371 1954 1100 307 225 120 136 35 Average 2137 | . 48 29 144 279 . 83 164 219 . . . . 553 245 380 185 310 698 249 582 1860 1797 645 322 133 82 184 5337 Maximum Alert Level 5 | . . . 1 1 . . 1 1 . . . . 2 2 2 . 3 3 1 3 5 5 4 2 1 1 1 5 Low Security (%) 22 | 100 100 100 67 14 . 100 57 35 . . . . . 26 10 100 47 . . 4 . . . 9 85 89 42 2 Level 1 20 | . . . 32 85 . . 42 64 . . . . 5 72 44 . 30 . 100 12 2 . . 61 14 10 57 2 Level 2 15 | . . . . . . . . . . . . . 94 1 44 . 8 53 . 54 14 . 76 28 . . . 11 Level 3 8 | . . . . . . . . . . . . . . . . . 14 46 . 28 2 . 21 . . . . 13 Level 4 3 | . . . . . . . . . . . . . . . . . . . . . 31 13 2 . . . . 1 Level 5 4 | . . . . . . . . . . . . . . . . . . . . . . 71 . . . . . 8 High Security 25 | . . . . . . . . . . . . . . . . . . . . . 49 15 . . . . . 59 Max Security . | . . . . . . . . . . . . . . . . . . . . . . . . . . . . . Squads Dispatched 104 | . . . 1 . . . 1 3 . . . 1 4 . . . 1 2 . 2 35 6 . 4 1 . 1 42 Investigation 6 | . . . . . . . . 2 . . . . 1 . . . . . . . 3 . . . . . . . Extermination 8 | . . . . . . . . 1 . . . . 1 . . . . . . . . . . 1 1 . . 4 Reinforcement 15 | . . . 1 . . . 1 . . . . . 1 . . . 1 . . 2 3 3 . . . . 1 2 Assault 66 | . . . . . . . . . . . . 1 1 . . . . 2 . . 26 . . . . . . 36 Garrison 9 | . . . . . . . . . . . . . . . . . . . . . 3 3 . 3 . . . . Intercept . | . . . . . . . . . . . . . . . . . . . . . . . . . . . . . Construction Impeded 1 | . . . . . . . 1 . . . . . . . . . . . . . . . . . . . . . Haulers Reinforced 4 | . . . . . . . . . . . . . 1 . . . . . . 1 2 . . . . . . . Stealth | -11 -10 -10 -9 -9 -9 -8 -8 -7 -7 -7 -7 -6 -6 -6 -6 -6 -6 -5 -5 -5 -4 -3 -3 -3 -2 -2 -1 -1 --------- Run | Scr Mat Min Mat Min Exi Min Mat Fac Low Low Dat Pro Fac Ext Cet Arc Hub Fac Was Fac Fac Res Qua Sec Res Tes Acc Com Distress Signals 27 | . . . 2 . . . 2 . . . . . . 1 2 2 1 1 . . 4 4 . . . 1 . 7 Communications Jammed . | . . . . . . . . . . . . . . . . . . . . . . . . . . . . . Distress Signals . | . . . . . . . . . . . . . . . . . . . . . . . . . . . . . Times Spotted 965 | . 11 13 25 10 5 9 17 18 6 9 . 38 17 22 10 2 34 8 5 5 132 6 2 14 5 5 8 529 Peak Tracking Total 72 | . 4 18 9 4 6 4 6 7 1 4 . 9 5 4 5 3 12 5 2 1 16 2 1 5 3 4 3 72 Tactical Retreats 38 | . 2 3 1 . . 2 . . . . . 1 . . . . 2 . . . 3 . 1 . . . . 23 Traps | -11 -10 -10 -9 -9 -9 -8 -8 -7 -7 -7 -7 -6 -6 -6 -6 -6 -6 -5 -5 -5 -4 -3 -3 -3 -2 -2 -1 -1 ------- Run | Scr Mat Min Mat Min Exi Min Mat Fac Low Low Dat Pro Fac Ext Cet Arc Hub Fac Was Fac Fac Res Qua Sec Res Tes Acc Com Traps Triggered 67 | . . 2 . . . . . 2 . . . . 1 2 . . . 3 . . 4 . . . 1 . 1 51 Indirectly 42 | . . . . . . . . . . . . . . . . . . . . . . . . . . . . 42 Trap Hack Attempts . | . . . . . . . . . . . . . . . . . . . . . . . . . . . . . Triggered . | . . . . . . . . . . . . . . . . . . . . . . . . . . . . . Disarmed 4 | . . . . . . . . . . . . . . 4 . . . . . . . . . . . . . . Reprogrammed . | . . . . . . . . . . . . . . . . . . . . . . . . . . . . . Reused . | . . . . . . . . . . . . . . . . . . . . . . . . . . . . . Traps Extracted . | . . . . . . . . . . . . . . . . . . . . . . . . . . . . . Installed . | . . . . . . . . . . . . . . . . . . . . . . . . . . . . . Triggered 2 | . . . . . . . . . . 1 . . . . . . . . . . . . . . . . . 1 Machines | -11 -10 -10 -9 -9 -9 -8 -8 -7 -7 -7 -7 -6 -6 -6 -6 -6 -6 -5 -5 -5 -4 -3 -3 -3 -2 -2 -1 -1 ---------- Run | Scr Mat Min Mat Min Exi Min Mat Fac Low Low Dat Pro Fac Ext Cet Arc Hub Fac Was Fac Fac Res Qua Sec Res Tes Acc Com Machines Disabled 91 | . . . . . 3 . 3 3 . . . . 2 4 1 . 25 3 . 5 9 1 3 12 . 5 1 11 Max in Single Turn 6 | . . . . . 2 . 1 2 . . . . 1 1 1 . 6 1 . 2 2 1 1 1 . 1 1 2 Garrison Access 8 | . . . . . . . . 1 . . . . 1 . . . . 2 . . 1 . . . . . 3 . Phase Generator 1 | . . . . . . . . . . . . . . . . . . . . . . . . . . . . 1 Network Hub 4 | . . . . . . . . . . . . . . . . . 4 . . . . . . . . . . . Machines Sabotaged . | . . . . . . . . . . . . . . . . . . . . . . . . . . . . . Garrisons Compromised . | . . . . . . . . . . . . . . . . . . . . . . . . . . . . . Overloaded Fab Kills . | . . . . . . . . . . . . . . . . . . . . . . . . . . . . . Fab Network Shutdowns . | . . . . . . . . . . . . . . . . . . . . . . . . . . . . . Hacking | -11 -10 -10 -9 -9 -9 -8 -8 -7 -7 -7 -7 -6 -6 -6 -6 -6 -6 -5 -5 -5 -4 -3 -3 -3 -2 -2 -1 -1 --------- Run | Scr Mat Min Mat Min Exi Min Mat Fac Low Low Dat Pro Fac Ext Cet Arc Hub Fac Was Fac Fac Res Qua Sec Res Tes Acc Com Machines Accessed 108 | . 2 2 . . 2 . 4 6 . . 4 . 7 14 1 . 9 6 . 1 4 3 6 11 1 2 11 12 Terminals 89 | . 2 . . . . . 4 5 . . . . 4 14 1 . 9 3 . 1 4 2 6 11 1 2 8 12 Fabricators 3 | . . . . . . . . . . . . . 1 . . . . 1 . . . 1 . . . . . . Repair Stations . | . . . . . . . . . . . . . . . . . . . . . . . . . . . . . Recycling Units . | . . . . . . . . . . . . . . . . . . . . . . . . . . . . . Scanalyzers . | . . . . . . . . . . . . . . . . . . . . . . . . . . . . . Garrison Access 8 | . . . . . . . . 1 . . . . 2 . . . . 2 . . . . . . . . 3 . Total Hacks 445 | . 8 2 . . 2 . 7 13 . . 26 . 20 33 1 . 28 29 . 3 17 21 45 47 7 11 61 64 Successful 238 | . 4 2 . . 2 . 4 3 . . 26 . 10 23 1 . 19 20 . . 7 6 21 27 6 4 24 29 Failed 207 | . 4 . . . . . 3 10 . . . . 10 10 . . 9 9 . 3 10 15 24 20 1 7 37 35 Catastrophic 42 | . . . . . . . 1 4 . . . . 1 . . . . . . 1 3 5 7 2 . 3 7 8 Database Lockouts . | . . . . . . . . . . . . . . . . . . . . . . . . . . . . . Manual 176 | . 5 . . . 1 . 3 . . . . . 8 20 1 . 12 13 . . 5 4 27 19 2 5 19 32 Terminals 385 | . 8 . . . . . 7 12 . . . . 13 33 1 . 28 20 . 3 17 14 45 47 7 11 55 64 Fabricators 15 | . . . . . . . . . . . . . 2 . . . . 6 . . . 7 . . . . . . Repair Stations . | . . . . . . . . . . . . . . . . . . . . . . . . . . . . . Recycling Units . | . . . . . . . . . . . . . . . . . . . . . . . . . . . . . Scanalyzers . | . . . . . . . . . . . . . . . . . . . . . . . . . . . . . Garrison Access 15 | . . . . . . . . 1 . . . . 5 . . . . 3 . . . . . . . . 6 . Terminal Hacks 160 | . 4 2 . . 2 . 4 2 . . 26 . 6 9 1 . 14 9 . . 5 3 14 18 4 2 16 19 Record 15 | . . . . . 1 . . . . . 11 . . . . . . . . . . . 2 . . . . 1 Part Schematic 12 | . . . . . . . . . . . 7 . . . . . 1 2 . . 1 . . . . . . 1 Robot Schematic 5 | . . . . . . . . . . . 5 . . . . . . . . . . . . . . . . . Robot Analysis 3 | . . . . . . . . . . . . . . . . . . . . . . . . . . . 2 1 Prototype ID Bank 18 | . 1 . . . . . 1 1 . . 3 . . . . . 3 1 . . . . 1 3 . . 3 1 Open Door 9 | . . 2 . . . . . . . . . . . . 1 . . . . . . . . 5 . . . 1 Level Access Points 5 | . . . . . . . . . . . . . 1 . . . 1 1 . . . . . 1 . . . 1 Branch Access Points 3 | . . . . . . . . . . . . . . . . . 1 . . . . . . 1 . . 1 . Emergency Access Points 2 | . . . . . . . . . . . . . . . . . . . . . . . . . . . . 2 Machine Index 3 | . . . . . . . . . . . . . . . . . 1 . . . . . . . . 1 1 . Terminal Index 3 | . . . . . . . . . . . . . . 1 . . . 1 . . . . . 1 . . . . Garrison Index 2 | . . . . . . . . . . . . . . . . . . . . . . . 1 . . . . 1 Alert Level 11 | . . . . . . . . . . . . . . 1 . . 1 . . . 1 . 2 1 1 . 1 3 Unreport Threat 32 | . 2 . . . . . 2 . . . . . 4 3 . . 2 . . . . 3 5 2 2 1 3 3 Locate Traps 12 | . . . . . . . 1 . . . . . . 1 . . 3 1 . . . . 1 3 . . . 2 Disarm Traps 3 | . . . . . . . . . . . . . . 3 . . . . . . . . . . . . . . Surveillance Status 1 | . . . . . . . . . . . . . . . . . . . . . . . . . . . 1 . Patrol Status 1 | . . . . . . . . . . . . . . . . . . . . . . . 1 . . . . . Recall Assault 3 | . . . . . . . . . . . . . . . . . . 1 . . 2 . . . . . . . Hauler Manifests 2 | . . . . . . . . . . . . . 1 . . . . . . . . . . . 1 . . . Registered Components 4 | . 1 . . . . . . 1 . . . . . . . . . 1 . . . . 1 . . . . . Registered Prototypes 2 | . . . . . . . . . . . . . . . . . . . . . 1 . . . . . 1 . Zone Layout 5 | . . . . . . . . . . . . . . . . . 1 1 . . . . . . . . 3 . EX-Prototype ID Bank 1 | . . . . . 1 . . . . . . . . . . . . . . . . . . . . . . . Activate Exoskeleton 1 | . . . . . . . . . . . . . . . . . . . . . . . . 1 . . . . Disengage Seal 2 | . . . . . . . . . . . . . . . . . . . . . . . . . . . . 2 Fabricator Hacks 6 | . . . . . . . . . . . . . 2 . . . . 2 . . . 2 . . . . . . Load Schematic 3 | . . . . . . . . . . . . . 1 . . . . 1 . . . 1 . . . . . . Build 3 | . . . . . . . . . . . . . 1 . . . . 1 . . . 1 . . . . . . Repair Station Hacks . | . . . . . . . . . . . . . . . . . . . . . . . . . . . . . Recycling Unit Hacks . | . . . . . . . . . . . . . . . . . . . . . . . . . . . . . Scanalyzer . | . . . . . . . . . . . . . . . . . . . . . . . . . . . . . Garrison Access Hacks 7 | . . . . . . . . 1 . . . . 1 . . . . 2 . . . . . . . . 3 . Seal Access 7 | . . . . . . . . 1 . . . . 1 . . . . 2 . . . . . . . . 3 . Unauthorized Hacks 65 | . . . . . . . . . . . . . 1 14 . . 5 7 . . 2 1 7 9 2 2 5 10 Terminals 63 | . . . . . . . . . . . . . 1 14 . . 5 6 . . 2 . 7 9 2 2 5 10 Track 29 | . . . . . . . . . . . . . . 8 . . 3 3 . . 1 . 3 3 1 1 2 4 Botnet 33 | . . . . . . . . . . . . . 1 6 . . 2 3 . . 1 . 4 6 1 1 3 5 Disrupt 1 | . . . . . . . . . . . . . . . . . . . . . . . . . . . . 1 Fabricators 2 | . . . . . . . . . . . . . . . . . . 1 . . . 1 . . . . . . Prioritize 2 | . . . . . . . . . . . . . . . . . . 1 . . . 1 . . . . . . Repair Stations . | . . . . . . . . . . . . . . . . . . . . . . . . . . . . . Recycling Units . | . . . . . . . . . . . . . . . . . . . . . . . . . . . . . Scanalyzers . | . . . . . . . . . . . . . . . . . . . . . . . . . . . . . Garrison Access . | . . . . . . . . . . . . . . . . . . . . . . . . . . . . . Data Cores Recovered 1 | . . . . . . . . . . . . . . . . . . . . . . . . . . . . 1 Used . | . . . . . . . . . . . . . . . . . . . . . . . . . . . . . Hacking Detections 75 | . 1 . . . . . 4 5 . . . . 7 10 . . 9 4 . 1 4 3 4 5 . 2 9 7 Full Trace Events 2 | . . . . . . . . 2 . . . . . . . . . . . . . . . . . . . . Feedback Events . | . . . . . . . . . . . . . . . . . . . . . . . . . . . . . Feedback Blocked . | . . . . . . . . . . . . . . . . . . . . . . . . . . . . . Robot Schematics Acquired 5 | . . . . . . . . . . . 5 . . . . . . . . . . . . . . . . . Robots Built . | . . . . . . . . . . . . . . . . . . . . . . . . . . . . . Matter . | . . . . . . . . . . . . . . . . . . . . . . . . . . . . . Time . | . . . . . . . . . . . . . . . . . . . . . . . . . . . . . Total Robot Build Rating . | . . . . . . . . . . . . . . . . . . . . . . . . . . . . . Part Schematics Acquired 12 | . . . . . . . . . . . 7 . . . . . 1 2 . . 1 . . . . . . 1 Parts Built 5 | . . . . . . . . . . . . . 2 . . . . 1 . . . 2 . . . . . . Matter 709 | . . . . . . . . . . . . . 212 . . . . 285 . . . 212 . . . . . . Time 235 | . . . . . . . . . . . . . 106 . . . . 76 . . . 53 . . . . . . Total Part Build Rating 29 | . . . . . . . . . . . . . 12 . . . . 5 . . . 12 . . . . . . Parts Repaired . | . . . . . . . . . . . . . . . . . . . . . . . . . . . . . Time . | . . . . . . . . . . . . . . . . . . . . . . . . . . . . . Parts Recycled . | . . . . . . . . . . . . . . . . . . . . . . . . . . . . . Recycled Matter . | . . . . . . . . . . . . . . . . . . . . . . . . . . . . . Retrieved Matter . | . . . . . . . . . . . . . . . . . . . . . . . . . . . . . Retrieved Components . | . . . . . . . . . . . . . . . . . . . . . . . . . . . . . Parts Scanalyzed . | . . . . . . . . . . . . . . . . . . . . . . . . . . . . . Part Schematics Acquired . | . . . . . . . . . . . . . . . . . . . . . . . . . . . . . Parts Damaged . | . . . . . . . . . . . . . . . . . . . . . . . . . . . . . Bothacking | -11 -10 -10 -9 -9 -9 -8 -8 -7 -7 -7 -7 -6 -6 -6 -6 -6 -6 -5 -5 -5 -4 -3 -3 -3 -2 -2 -1 -1 ------------ Run | Scr Mat Min Mat Min Exi Min Mat Fac Low Low Dat Pro Fac Ext Cet Arc Hub Fac Was Fac Fac Res Qua Sec Res Tes Acc Com Used RIF Installer . | . . . . . . . . . . . . . . . . . . . . . . . . . . . . . Robots Hacked 2 | . . . . . . . . . . . . . . . . . . . . . . . . . . . . 2 Non-combat . | . . . . . . . . . . . . . . . . . . . . . . . . . . . . . Combat 2 | . . . . . . . . . . . . . . . . . . . . . . . . . . . . 2 Robot Hacks Applied 2 | . . . . . . . . . . . . . . . . . . . . . . . . . . . . 2 parse_system 2 | . . . . . . . . . . . . . . . . . . . . . . . . . . . . 2 Relay Couplers Released 1 | . . . . . . . . . . . . . . . . . . . . . 1 . . . . . . . Machine Destruction 1 | . . . . . . . . . . . . . . . . . . . . . 1 . . . . . . . Robots Rewired 9 | . . . . . . . . . . . . 2 . 7 . . . . . . . . . . . . . . Allies Hacked . | . . . . . . . . . . . . . . . . . . . . . . . . . . . . . Hacks Repelled . | . . . . . . . . . . . . . . . . . . . . . . . . . . . . . Allies | -11 -10 -10 -9 -9 -9 -8 -8 -7 -7 -7 -7 -6 -6 -6 -6 -6 -6 -5 -5 -5 -4 -3 -3 -3 -2 -2 -1 -1 -------- Run | Scr Mat Min Mat Min Exi Min Mat Fac Low Low Dat Pro Fac Ext Cet Arc Hub Fac Was Fac Fac Res Qua Sec Res Tes Acc Com Total Allies 141 | . . 1 . 2 . . . . . . . 3 . 21 5 . . . 20 . . . . . . . . 89 Largest Group 32 | . . 1 . 2 . . . . . . . 3 2 19 18 16 1 . 20 19 14 . . . . . . 32 Highest-Rated Group 1064 | . . 31 . 45 . . . . . . . 143 114 783 1064 939 94 . 727 702 520 . . . . . . 687 Highest-Rated Ally 243 | . . 31 . 31 . . . . . . . 94 94 156 156 156 94 . 50 50 50 . . . . . . 243 Total Orders 3 | . . . . . 1 2 . . . . . . . . . . . . . . . . . . . . . . RETURN 3 | . . . . . 1 2 . . . . . . . . . . . . . . . . . . . . . . Ally Attacks 749 | . . 8 . . 117 2 . . . . . 42 8 24 55 8 7 . 20 26 55 . . . . . . 377 Total Damage 14457 | . . 85 . . 734 60 . . . . . 1050 250 674 1261 217 231 . 578 533 1020 . . . . . . 7764 Kills 58 | . . 2 . . 1 . . . . . . 5 2 3 7 1 . . 3 3 5 . . . . . . 26 Allies Corrupted 7 | . . . . . . . . . . . . . . . . . . . . 4 . . . . . . . 3 Allies Melted . | . . . . . . . . . . . . . . . . . . . . . . . . . . . . . Intel | -11 -10 -10 -9 -9 -9 -8 -8 -7 -7 -7 -7 -6 -6 -6 -6 -6 -6 -5 -5 -5 -4 -3 -3 -3 -2 -2 -1 -1 ------- Run | Scr Mat Min Mat Min Exi Min Mat Fac Low Low Dat Pro Fac Ext Cet Arc Hub Fac Was Fac Fac Res Qua Sec Res Tes Acc Com Robot Analysis Total 3 | . . . . . . . . . . . . . . . . . . . . . . . . . . . 2 1 Derelict Logs Recovered 7 | . . 2 . 2 . . . . 2 1 . . . . . . . . . . . . . . . . . . Drone Launches 15 | . . . . . 13 2 . . . . . . . . . . . . . . . . . . . . . . Drone Recoveries 13 | . . . . . 12 1 . . . . . . . . . . . . . . . . . . . . . . Exploration | -11 -10 -10 -9 -9 -9 -8 -8 -7 -7 -7 -7 -6 -6 -6 -6 -6 -6 -5 -5 -5 -4 -3 -3 -3 -2 -2 -1 -1 ------------- Run | Scr Mat Min Mat Min Exi Min Mat Fac Low Low Dat Pro Fac Ext Cet Arc Hub Fac Was Fac Fac Res Qua Sec Res Tes Acc Com Turns Passed 16949 | 36 340 405 216 466 403 514 196 934 421 375 51 708 577 662 214 64 723 484 177 395 1111 324 226 652 349 169 417 5340 Spaces Moved 17924 | 34 239 415 126 509 316 534 174 1197 573 510 78 898 693 662 161 54 918 723 127 558 986 272 346 835 471 224 712 4579 Core 4 | 3 . . . . . . . . . . . . . . . . . . . . . . . . . . . 1 Treads . | . . . . . . . . . . . . . . . . . . . . . . . . . . . . . Legs . | . . . . . . . . . . . . . . . . . . . . . . . . . . . . . Wheels 293 | 31 239 23 . . . . . . . . . . . . . . . . . . . . . . . . . . Hover 17142 | . . 392 126 509 316 534 174 1197 573 510 78 413 693 662 161 54 918 723 127 558 986 272 346 835 471 224 712 4578 Flight 485 | . . . . . . . . . . . . 485 . . . . . . . . . . . . . . . . Fastest Speed 36 | 50 90 76 76 76 76 76 76 65 65 65 66 37 53 53 53 53 53 53 53 53 53 53 55 48 45 45 45 36 Average Speed 53 | 84 90 76 76 76 76 76 76 66 65 65 66 50 56 53 53 53 53 53 53 53 53 53 57 49 47 45 45 37 Slowest Speed 400 | 90 90 90 76 76 80 76 76 76 65 66 66 120 66 53 53 53 53 53 53 53 53 60 60 55 48 45 45 400 Overloaded Moves . | . . . . . . . . . . . . . . . . . . . . . . . . . . . . . Propulsion Burnouts . | . . . . . . . . . . . . . . . . . . . . . . . . . . . . . Robots Hopped 1 | . . . . . . . . . . . . . . . . . . . . . . . . . . . . 1 Cave-ins Triggered 2 | . . . . . . . . . . . . . . . . . . . . . 1 . . . . . . 1 Exploration Rate (%) 50 | 3 40 85 23 77 53 86 28 40 76 73 70 68 27 81 67 74 84 26 78 24 25 13 50 57 17 37 24 70 Regions Visited 28 Branch Regions 16 Pre-discovered Areas 3 | . . . . 1 1 . . . . . 1 . . . . . . . . . . . . . . . . . Known Exits Taken 22 | . . 1 1 1 1 1 1 1 1 . . 1 1 1 1 1 1 . . 1 1 1 1 1 1 1 1 . Unknown Exits Taken 4 | 1 1 . . . . . . . . 1 1 . . . . . . . . . . . . . . . . . Scrap Searched 9 | . . 1 . . . 1 . . 3 1 . 3 . . . . . . . . . . . . . . . . Spaces Dug 147 | . . . . . . . . 1 2 . . 1 4 . . . 40 7 2 . 12 6 8 12 15 37 . . Terrain Destroyed 1910 | . . . 25 9 25 21 13 7 6 15 . 34 32 51 16 . 732 15 6 41 189 18 13 27 23 47 1 544 Melee . | . . . . . . . . . . . . . . . . . . . . . . . . . . . . . Projectile 647 | . . . . . . 21 13 7 6 15 . 34 32 51 16 . 97 15 6 6 131 18 13 27 23 22 1 93 AOE 1263 | . . . 25 9 25 . . . . . . . . . . . 635 . . 35 58 . . . . 25 . 451 Terrain Rammed . | . . . . . . . . . . . . . . . . . . . . . . . . . . . . . Walls Destroyed . | . . . . . . . . . . . . . . . . . . . . . . . . . . . . . Machines Disabled . | . . . . . . . . . . . . . . . . . . . . . . . . . . . . . Actions | -11 -10 -10 -9 -9 -9 -8 -8 -7 -7 -7 -7 -6 -6 -6 -6 -6 -6 -5 -5 -5 -4 -3 -3 -3 -2 -2 -1 -1 --------- Run | Scr Mat Min Mat Min Exi Min Mat Fac Low Low Dat Pro Fac Ext Cet Arc Hub Fac Was Fac Fac Res Qua Sec Res Tes Acc Com Total 24573 | 38 320 477 197 565 475 646 237 1343 625 558 77 1166 885 983 290 88 1162 825 240 660 1568 453 374 1067 600 292 801 7561 Wait 3674 | . 44 18 32 30 126 72 32 96 24 13 . 96 114 194 103 35 158 69 79 74 262 153 10 135 75 23 61 1546 Move 17892 | 33 238 414 125 508 315 533 173 1196 572 509 77 897 692 661 160 53 917 723 126 557 984 271 345 834 470 223 711 4575 Hop 1 | . . . . . . . . . . . . . . . . . . . . . . . . . . . . 1 Pick Up 45 | . 1 1 . . 1 . . . . 3 . 10 1 . . . . 1 . 2 7 1 1 2 4 . . 10 Fast Attach 167 | 5 3 4 1 . 8 1 . 5 1 4 . 13 9 1 1 . . 2 . 3 8 2 3 17 7 12 1 56 Attach 13 | . . . . . 5 . . . . . . . . . . . . . . . 1 . 1 . . . . 6 Detach 10 | . . . . . 3 . . . . 1 . . . . . . . 1 . . . . . 1 . . . 4 Swap 47 | . 3 1 4 3 1 . . . . . . . . . . . . 1 2 3 1 . 4 . 1 . 1 22 Drop 182 | . 4 5 1 . 10 1 . 3 1 6 . 16 7 . 1 . 2 2 . 6 14 2 5 14 10 12 . 60 Fire 1646 | . 23 12 24 11 6 21 19 30 17 16 . 82 46 53 15 . 57 20 22 11 185 18 5 43 17 14 27 852 Melee . | . . . . . . . . . . . . . . . . . . . . . . . . . . . . . Ram 1 | . . . . . . . . . . 1 . . . . . . . . . . . . . . . . . . Kick . | . . . . . . . . . . . . . . . . . . . . . . . . . . . . . Crush . | . . . . . . . . . . . . . . . . . . . . . . . . . . . . . Escape Stasis 24 | . . . . . . . . . . . . . . 2 . . . . . . 7 . . . . . . 15 Rewire 60 | . . . . . . . . . . . . 6 . 54 . . . . . . . . . . . . . . Trap . | . . . . . . . . . . . . . . . . . . . . . . . . . . . . . Miscellaneous 811 | . 4 22 10 13 . 18 13 13 10 5 . 46 16 18 10 . 28 6 11 4 99 6 . 21 16 8 . 414 Route ------- -11/Scrapyard -10/Materials -10/Mines (discovered 2 exits: *Mat x2) -9/Materials -9/Mines (discovered 2 exits: *Mat / *Exi) -9/Exiles -8/Mines -8/Materials -7/Factory (discovered 2 exits: *Fac / *Low) -7/Lower Caves -7/Lower Caves (discovered 2 exits: *Fac / *Dat) -7/Data Miner -6/Proximity Caves -6/Factory (discovered 5 exits: Fac x4 / *Ext) -6/Extension (discovered 2 exits: *Fac / *Cet) -6/Cetus (discovered 2 exits: *Fac / *Arc) -6/Archives -6/Hub_04(d) (discovered 4 exits: *Fac x4) -5/Factory (discovered 5 exits: *Fac x4 / *Upp) -5/Waste -5/Factory -4/Factory -3/Research (discovered 2 exits: *Res / *Qua) -3/Quarantine -3/Section 7 -2/Research -2/Testing -1/Access -1/Command (discovered 2 exits: *Sur x2) To Fleet Rendezvous History --------- Turn | Location | Event 5 | -11/Scrapyard | Upgraded with Propulsion slot (x1) 5 | -11/Scrapyard | Upgraded with Utility slot (x1) 5 | -11/Scrapyard | Upgraded with Weapon slot (x1) 12 | -11/Scrapyard | Discovered new exit (range 16) 37 | -11/Scrapyard | Entered Materials 311 | -10/Materials | Build established: Mutant 369 | -10/Materials | Discovered new exit (range 8) 377 | -10/Materials | Entered Mines 378 | -10/Mines | Assembled infested the area 380 | -10/Mines | Received a Mining Laser from a helpful Derelict 384 | -10/Mines | Assisted by a Guerilla fighting off Assembled 431 | -10/Mines | Discovered new exit (range 13) 491 | -10/Mines | Learned Materials terminal intel 585 | -10/Mines | Met a Derelict who couldn't figure out how to use a Trap Extractor 644 | -10/Mines | Discovered new exit (range 16) 654 | -10/Mines | Found the Drone Emporium 662 | -10/Mines | Identified exit to Materials 773 | -10/Mines | Found Prototype Device 773 | -10/Mines | Identified Thief Drone Bay 782 | -10/Mines | Entered Materials 783 | -9/Materials | Identified exit to Mines 784 | -9/Materials | Loaded intel: 12 terminal locations 784 | -9/Materials | Reached level 2 856 | -9/Materials | Reached level 3 907 | -9/Materials | Upgraded with Utility slot (x1) 998 | -9/Materials | Entered Mines 1000 | -9/Mines | Reached level 4 1005 | -9/Mines | Met a Derelict bent on vengeance 1093 | -9/Mines | Learned Materials stockpile data 1226 | -9/Mines | A weapon hastily lodged in a ceiling crevice suddenly fell to the ground 1328 | -9/Mines | Learned location of Recycling (-9) 1335 | -9/Mines | Discovered new exit (range 5) 1338 | -9/Mines | Identified exit to Materials 1448 | -9/Mines | Deemed a non-threat by the Exiles lab entrance 1448 | -9/Mines | Discovered new exit (range 5) 1450 | -9/Mines | Identified exit to Exiles 1464 | -9/Mines | Entered Exiles 1465 | -9/Exiles | Identified exit to Mines 1466 | -9/Exiles | Reached level 5 1484 | -9/Exiles | Met 8R-AWN 1496 | -9/Exiles | Met EX-HEX 1518 | -9/Exiles | Met EX-BIN 1529 | -9/Exiles | Aligned with FarCom system 1530 | -9/Exiles | Given EX-Vault access code 1548 | -9/Exiles | Opened EX-Vault 1553 | -9/Exiles | Upgraded with Weapon slot (x2) 1558 | -9/Exiles | Found XL Autogun Array 1577 | -9/Exiles | Warned to stay clear of 0b10 Research branches 1598 | -9/Exiles | Met EX-DEC 1604 | -9/Exiles | Learned location of Zion (-6) 1638 | -9/Exiles | Attacked by the Exiles 1689 | -9/Exiles | Found Prototype Device 1689 | -9/Exiles | Identified AS-neutralizer No. 17b 1723 | -9/Exiles | Found Prototype Ballistic Gun 1723 | -9/Exiles | Identified 8R-AWN's Boregun 1725 | -9/Exiles | Found 8R-AWN's Boregun 1808 | -9/Exiles | Allies destroyed 8R-AWN 1841 | -9/Exiles | Build established: Gunner 1867 | -9/Exiles | Left Exiles lab with XL Autogun Array 1867 | -9/Exiles | Entered Mines 1909 | -8/Mines | 12-ASH came to Exiles' defense 1968 | -8/Mines | Destroyed 12-ASH 2005 | -8/Mines | Discovered exit to Materials (range 10) 2381 | -8/Mines | Entered Materials 2383 | -8/Materials | Reached level 6 2435 | -8/Materials | Reached level 7 2555 | -8/Materials | Discovered new exit (range 16) 2575 | -8/Materials | Identified exit to Factory 2576 | -8/Materials | Upgraded with Utility slot (x1) 2577 | -8/Materials | Entered Factory 2579 | -7/Factory | Reached level 8 2690 | -7/Factory | Upgraded with Propulsion slot (x1) 2704 | -7/Factory | Reached level 9 3014 | -7/Factory | Discovered new exit (range 4) 3016 | -7/Factory | Identified exit to Lower Caves 3032 | -7/Factory | Reached level 10 3185 | -7/Factory | Discovered new exit (range 16) 3511 | -7/Factory | Entered Lower Caves 3596 | -7/Lower Caves | Encountered a Warlord checkpoint 3667 | -7/Lower Caves | Learned 4 Factory zone layouts 3678 | -7/Lower Caves | Reached level 11 3728 | -7/Lower Caves | Attracted the attention of an 0b10 checkpoint 3917 | -7/Lower Caves | Discovered new exit (range 9) 3923 | -7/Lower Caves | Learned location of 1 exit from Factory 3924 | -7/Lower Caves | Identified exit to Lower Caves 3932 | -7/Lower Caves | Entered another Lower Caves area 3959 | -7/Lower Caves | Discovered new exit (range 7) 3963 | -7/Lower Caves | Identified exit to Factory 4095 | -7/Lower Caves | Upgraded with Utility slot (x1) 4172 | -7/Lower Caves | Reached level 12 4202 | -7/Lower Caves | Discovered new exit (range 13) 4211 | -7/Lower Caves | Learned 8 Factory zone layouts 4227 | -7/Lower Caves | Spotted B-75 Beast 4269 | -7/Lower Caves | Spotted 3N-EY2(f) 4270 | -7/Lower Caves | Encountered a Master Thief 4275 | -7/Lower Caves | Cmb. Airjet stolen by Master Thief 4307 | -7/Lower Caves | Entered Data Miner 4307 | -7/Data Miner | Discovered new exit (range 6) 4319 | -7/Data Miner | Met Data Miner 4331 | -7/Data Miner | Acquired the access code to Warlord's prototype stash 4331 | -7/Data Miner | Learned location of Section 7 (-3) 4344 | -7/Data Miner | Received God Mode back door access code from Data Miner 4358 | -7/Data Miner | Entered Proximity Caves 4360 | -6/Proximity Caves | Reached level 13 4378 | -6/Proximity Caves | Escorted by Enhanced Grunt 4433 | -6/Proximity Caves | Attracted the attention of an 0b10 outpost 4436 | -6/Proximity Caves | Reached level 14 4473 | -6/Proximity Caves | Destroyed 9 combat bots 4495 | -6/Proximity Caves | Reached level 15 4521 | -6/Proximity Caves | Upgraded with Propulsion slot (x1) 4560 | -6/Proximity Caves | Spotted IU-B5E(f) 4561 | -6/Proximity Caves | Encountered a Master Thief 4562 | -6/Proximity Caves | 8R-AWN's Boregun stolen by Master Thief 4564 | -6/Proximity Caves | Allies destroyed IU-B5E(f) 4602 | -6/Proximity Caves | Spotted BA-EQ5(f) 4604 | -6/Proximity Caves | Encountered a Master Thief 4606 | -6/Proximity Caves | Spotted BC-SWC(f) 4607 | -6/Proximity Caves | Encountered a Master Thief 4619 | -6/Proximity Caves | Cmb. Airjet stolen by Master Thief 4620 | -6/Proximity Caves | Allies destroyed BC-SWC(f) 4622 | -6/Proximity Caves | Nuclear Pulse Thruster stolen by Master Thief 4709 | -6/Proximity Caves | Spotted 2M-PJ3(f) 4710 | -6/Proximity Caves | Encountered a Master Thief 4716 | -6/Proximity Caves | Cmb. Airjet stolen by Master Thief 4718 | -6/Proximity Caves | Destroyed 2M-PJ3(f) 4759 | -6/Proximity Caves | Spotted DJ-0SD(f) 4760 | -6/Proximity Caves | Encountered a Master Thief 4762 | -6/Proximity Caves | Allies destroyed DJ-0SD(f) 4802 | -6/Proximity Caves | Spotted B-75 Beast 4951 | -6/Proximity Caves | Reached level 16 4994 | -6/Proximity Caves | Destroyed B-75 Beast 5019 | -6/Proximity Caves | Discovered exit to Factory (range 10) 5066 | -6/Proximity Caves | Entered Factory 5066 | -6/Factory | Accompanied by 2 allies 5067 | -6/Factory | Identified exit to Factory 5068 | -6/Factory | Reached level 17 5083 | -6/Factory | Upgraded with Utility slot (x1) 5181 | -6/Factory | Fabricated Cmb. Gravmag System (x2) 5214 | -6/Factory | Upgraded with Utility slot (x1) 5282 | -6/Factory | Reached level 18 5359 | -6/Factory | Found Prototype Processor 5359 | -6/Factory | Identified Exp. Signal Interpreter 5361 | -6/Factory | Upgraded with Utility slot (x1) 5416 | -6/Factory | First assault squad dispatched 5614 | -6/Factory | Discovered new exit (range 10) 5618 | -6/Factory | Identified exit to Extension 5628 | -6/Factory | Incoming investigation squad redirected 5643 | -6/Factory | Entered Extension 5643 | -6/Extension | Accompanied by 1 ally 5690 | -6/Extension | Reached level 19 5704 | -6/Extension | Rescued a captive Derelict 5705 | -6/Extension | Rescued a captive Derelict 5728 | -6/Extension | Rescued a captive Derelict 5728 | -6/Extension | Rescued a captive Derelict 5747 | -6/Extension | Build established: Hacker-Scout 5774 | -6/Extension | Upgraded with Weapon slot (x1) 5783 | -6/Extension | Rescued a captive Derelict 5784 | -6/Extension | Rescued a captive Derelict 5790 | -6/Extension | Rescued a captive Derelict 5792 | -6/Extension | Rescued a captive Derelict 5793 | -6/Extension | Rescued a captive Derelict 5983 | -6/Extension | Spotted B-75 Beast 6016 | -6/Extension | Destroyed B-75 Beast 6024 | -6/Extension | Spotted B-75 Beast 6030 | -6/Extension | Destroyed B-75 Beast 6050 | -6/Extension | Rescued a captive Derelict 6051 | -6/Extension | Rescued a captive Derelict 6066 | -6/Extension | Rescued a captive Derelict 6078 | -6/Extension | Rescued a captive Derelict 6086 | -6/Extension | Rescued A7 6251 | -6/Extension | Discovered exit to Factory (range 10) 6252 | -6/Extension | Discovered new exit (range 6) 6254 | -6/Extension | Identified exit to Cetus 6305 | -6/Extension | Entered Cetus 6305 | -6/Cetus | Accompanied by 18 allies (A7) 6310 | -6/Cetus | Acquired a Cetus Manufacturing Module code from A7 6313 | -6/Cetus | Spotted Cetus Guard 6313 | -6/Cetus | Spotted Cetus Guard 6315 | -6/Cetus | Spotted Cetus Guard 6316 | -6/Cetus | Spotted Cetus Guard 6327 | -6/Cetus | Allies destroyed Cetus Guard 6327 | -6/Cetus | Allies destroyed Cetus Guard 6327 | -6/Cetus | Reached level 20 6327 | -6/Cetus | Allies destroyed Cetus Guard 6329 | -6/Cetus | Allies destroyed Cetus Guard 6352 | -6/Cetus | Started Cetus Manufacturing Module 6357 | -6/Cetus | Escorted A7 to Cetus Mainframe 6373 | -6/Cetus | Discovered new exit (range 16) 6377 | -6/Cetus | Manufactured an Enhanced Grunt 6402 | -6/Cetus | Manufactured an Enhanced Grunt 6412 | -6/Cetus | Spotted Cetus Guard 6413 | -6/Cetus | Spotted Cetus Guard 6414 | -6/Cetus | Spotted Cetus Guard 6414 | -6/Cetus | Spotted Cetus Guard 6421 | -6/Cetus | Discovered exit to Factory (range 18) 6421 | -6/Cetus | Allies destroyed Cetus Guard 6423 | -6/Cetus | Destroyed Cetus Guard 6423 | -6/Cetus | Allies destroyed Cetus Guard 6425 | -6/Cetus | Destroyed Cetus Guard 6427 | -6/Cetus | Manufactured an Enhanced Grunt 6428 | -6/Cetus | Met Revision 17 6452 | -6/Cetus | Manufactured an Enhanced Grunt 6461 | -6/Cetus | Identified exit to Archives 6477 | -6/Cetus | Manufactured an Enhanced Grunt 6519 | -6/Cetus | Entered Archives 6519 | -6/Archives | Accompanied by 16 allies (A7) 6525 | -6/Archives | Build established: Commander-Scout 6525 | -6/Archives | Received a hacking code to weaken MAIN.C 6529 | -6/Archives | Met Zhirov 6534 | -6/Archives | Discovered new exit (range 16) 6535 | -6/Archives | Reinforcements dispatched to Archives 6542 | -6/Archives | Identified exit to Hub_04(d) 6580 | -6/Archives | Reinforcements dispatched to Archives 6583 | -6/Archives | Entered Hub_04(d) 6583 | -6/Hub_04(d) | Accompanied by 1 ally 6886 | -6/Hub_04(d) | Build established: Hacker-Scout 7164 | -6/Hub_04(d) | Network Hub disabled 7164 | -6/Hub_04(d) | Reached level 21 7164 | -6/Hub_04(d) | Spotted Lightning 7164 | -6/Hub_04(d) | Spotted Lightning 7164 | -6/Hub_04(d) | Spotted Lightning 7164 | -6/Hub_04(d) | Spotted Lightning 7164 | -6/Hub_04(d) | Spotted Lightning 7164 | -6/Hub_04(d) | Spotted Lightning 7165 | -6/Hub_04(d) | Spotted Lightning 7165 | -6/Hub_04(d) | Spotted Lightning 7166 | -6/Hub_04(d) | Spotted Lightning 7203 | -6/Hub_04(d) | Network Hub disabled 7245 | -6/Hub_04(d) | Core integrity fell below 50% 7246 | -6/Hub_04(d) | Network Hub disabled 7281 | -6/Hub_04(d) | Network Hub disabled 7306 | -6/Hub_04(d) | Entered Factory 7410 | -5/Factory | Fabricated Exp. Terrain Scanner (x1) 7530 | -5/Factory | Reached level 22 7530 | -5/Factory | Identified exit to Factory 7538 | -5/Factory | Discovered new exit (range 30) 7580 | -5/Factory | Identified exit to Upper Caves 7606 | -5/Factory | First assault squad dispatched 7790 | -5/Factory | Sucked down chute 7790 | -5/Factory | Entered Waste 7791 | -5/Waste | Met a frightened Derelict 7799 | -5/Waste | Destroyed C-40 Crusher 7801 | -5/Waste | Spotted C-40 Crusher 7801 | -5/Waste | Spotted C-40 Crusher 7805 | -5/Waste | EMP discharged 7806 | -5/Waste | Destroyed C-40 Crusher 7810 | -5/Waste | Allies destroyed C-40 Crusher 7818 | -5/Waste | Spotted C-40 Crusher 7824 | -5/Waste | Destroyed C-40 Crusher 7836 | -5/Waste | Destroyed C-40 Crusher 7851 | -5/Waste | Met Warlord forces unprepared to attack 7878 | -5/Waste | Discovered new exit (range 13) 7878 | -5/Waste | Spotted C-40 Crusher 7885 | -5/Waste | Allies destroyed C-40 Crusher 7891 | -5/Waste | Identified exit to Factory 7905 | -5/Waste | EMP discharged 7905 | -5/Waste | System corruption reached 10% 7967 | -5/Waste | Entered Factory 7967 | -5/Factory | Accompanied by 19 allies 8112 | -5/Factory | Build established: Hacker-Gunner 8191 | -5/Factory | Found Prototype Launcher 8191 | -5/Factory | Identified Tesla Bomb Launcher 8273 | -5/Factory | Discovered exit to Factory (range 13) 8362 | -5/Factory | Entered another Factory area 8362 | -4/Factory | Accompanied by 14 allies 8364 | -4/Factory | Reached level 23 8425 | -4/Factory | Reached level 24 8550 | -4/Factory | Discovered new exit (range 11) 8551 | -4/Factory | Garrison activated, responded to threat 8558 | -4/Factory | Identified exit to Research 8572 | -4/Factory | Reached level 25 8594 | -4/Factory | Destroyed 11 combat bots 8612 | -4/Factory | First assault squad dispatched 8673 | -4/Factory | Upgraded with Utility slot (x1) 8689 | -4/Factory | Incoming investigation squad redirected 8891 | -4/Factory | Build established: Scout 8892 | -4/Factory | Incoming assault squad redirected 8923 | -4/Factory | High security lockdown imminent 9003 | -4/Factory | High security lockdown engaged 9055 | -4/Factory | Reached level 26 9150 | -4/Factory | Destroyed 7 combat bots 9232 | -4/Factory | Destroyed 29 combat bots 9299 | -4/Factory | Garrison activated, responded to threat 9302 | -4/Factory | Reached level 27 9380 | -4/Factory | Destroyed 20 combat bots 9445 | -4/Factory | Crushed by falling debris 9458 | -4/Factory | Destroyed 13 combat bots 9473 | -4/Factory | Entered Research 9475 | -3/Research | Reached level 28 9491 | -3/Research | Upgraded with Power slot (x1) 9668 | -3/Research | Discovered new exit (range 16) 9673 | -3/Research | Revision forces began assault on 0b10 9680 | -3/Research | Identified exit to Research 9689 | -3/Research | Discovered new exit (range 24) 9748 | -3/Research | High security lockdown imminent 9761 | -3/Research | Fabricated Cmb. Gravmag System (x2) 9773 | -3/Research | Spotted B-90 Cyclops 9779 | -3/Research | Destroyed B-90 Cyclops 9796 | -3/Research | Identified exit to Quarantine 9797 | -3/Research | Entered Quarantine 9900 | -3/Quarantine | Found Alien Artifact 9900 | -3/Quarantine | Identified Matter Drive 9906 | -3/Quarantine | Upgraded with Weapon slot (x1) 9973 | -3/Quarantine | Spotted Fortress 10021 | -3/Quarantine | Discovered new exit (range 6) 10023 | -3/Quarantine | Identified exit to Section 7 10023 | -3/Quarantine | Entered Section 7 10025 | -3/Section 7 | Reached level 29 10030 | -3/Section 7 | Found Alien Artifact 10030 | -3/Section 7 | Identified Integrated Dissipator 10030 | -3/Section 7 | Installed Integrated Dissipator, increased core heat dissipation (+20) 10082 | -3/Section 7 | Found Alien Artifact 10082 | -3/Section 7 | Identified Core Reset Matrix 10082 | -3/Section 7 | Used Core Reset Matrix 10086 | -3/Section 7 | Sensed 17 artifacts in vicinity 10089 | -3/Section 7 | Spotted B-86 Titan 10126 | -3/Section 7 | Spotted S7 Guard 10130 | -3/Section 7 | Found Core Regenerator 10145 | -3/Section 7 | Destroyed S7 Guard 10154 | -3/Section 7 | Discovered exit to Research (range 21) 10173 | -3/Section 7 | Found Integrated Dissipator 10173 | -3/Section 7 | Installed Integrated Dissipator, increased core heat dissipation (+20) 10178 | -3/Section 7 | Upgraded with Propulsion slot (x1) 10186 | -3/Section 7 | Found Prototype Device 10186 | -3/Section 7 | Identified Exp. Shield Generator 10211 | -3/Section 7 | Spotted Executioner 10211 | -3/Section 7 | Spotted Executioner 10228 | -3/Section 7 | Garrison activated, responded to threat 10231 | -3/Section 7 | Destroyed Executioner 10235 | -3/Section 7 | Destroyed Executioner 10334 | -3/Section 7 | Spotted Striker 10334 | -3/Section 7 | Spotted Striker 10340 | -3/Section 7 | Destroyed Striker 10341 | -3/Section 7 | Destroyed Striker 10371 | -3/Section 7 | Found Sigix Quantum Sheargun 10398 | -3/Section 7 | Build established: Alien-Scout 10470 | -3/Section 7 | Found LRC Storage 10470 | -3/Section 7 | Installed LRC Storage, increased inventory capacity (+2) 10547 | -3/Section 7 | Found Transdimensional Reconstructor 10675 | -3/Section 7 | Entered Research 10677 | -2/Research | Reached level 30 10761 | -2/Research | Discovered new exit (range 14) 10831 | -2/Research | Identified exit to Testing 11024 | -2/Research | Entered Testing 11026 | -2/Testing | Reached level 31 11033 | -2/Testing | Spotted PP-11RM6DBQB8 11067 | -2/Testing | Found Prototype Energy Cannon 11067 | -2/Testing | Identified Potential Cannon 11096 | -2/Testing | Found Prototype Ballistic Cannon 11096 | -2/Testing | Identified Omega Cannon 11185 | -2/Testing | Discovered new exit (range 13) 11191 | -2/Testing | Identified exit to Access 11193 | -2/Testing | Entered Access 11195 | -1/Access | Reached level 32 11258 | -1/Access | Reached level 33 11366 | -1/Access | Identified exit to Command 11508 | -1/Access | Upgraded with Propulsion slot (x1) 11508 | -1/Access | Upgraded with Utility slot (x1) 11610 | -1/Access | Entered Command 11612 | -1/Command | Reached level 34 11686 | -1/Command | Spotted B-99 Colossus 11709 | -1/Command | Spotted B-99 Colossus 11743 | -1/Command | Disengaged cave seal 11766 | -1/Command | Identified exit to Surface 11775 | -1/Command | Reached level 35 11797 | -1/Command | Destroyed 8 combat bots 11870 | -1/Command | Upgraded with Utility slot (x1) 11895 | -1/Command | Phase Generator disabled 11908 | -1/Command | First assault squad dispatched 11935 | -1/Command | Incoming assault squad redirected 11979 | -1/Command | Disengaged cave seal 12135 | -1/Command | Destroyed B-99 Colossus 12285 | -1/Command | Spotted Combat Programmer 12286 | -1/Command | Spotted M Guard 12322 | -1/Command | Destroyed Combat Programmer 12322 | -1/Command | Reached level 36 12323 | -1/Command | Core integrity fell below 50% 12326 | -1/Command | Destroyed Combat Programmer 12329 | -1/Command | Spotted M Guard 12417 | -1/Command | Destroyed M Guard 12443 | -1/Command | Found Prototype Reactor 12443 | -1/Command | Identified Zero-point Reactor 12445 | -1/Command | Found Prototype Device 12445 | -1/Command | Identified Thermal Barrier 12448 | -1/Command | Found Prototype Device 12448 | -1/Command | Identified AEGIS Remote Shield 12451 | -1/Command | Found Zero-point Reactor 12470 | -1/Command | Destroyed M Guard 12470 | -1/Command | All MAIN.C guards destroyed 12474 | -1/Command | Found Prototype Processor 12474 | -1/Command | Identified Exp. Targeting Computer 12546 | -1/Command | Found Prototype Protection 12546 | -1/Command | Identified Hvy. Regenerative Plating 12980 | -1/Command | Incoming assault squad redirected 13061 | -1/Command | Crushed by falling debris 13282 | -1/Command | Destroyed 34 combat bots 13312 | -1/Command | Reached level 37 13315 | -1/Command | High security lockdown imminent 13380 | -1/Command | Destroyed 49 combat bots 13395 | -1/Command | High security lockdown engaged 13438 | -1/Command | Destroyed 10 combat bots 13517 | -1/Command | Destroyed 17 combat bots 13570 | -1/Command | Spotted Executioner 13571 | -1/Command | Spotted Striker 13573 | -1/Command | Destroyed Striker 13574 | -1/Command | Destroyed Executioner 13590 | -1/Command | Destroyed Investigator 13614 | -1/Command | Destroyed 17 combat bots 13707 | -1/Command | Spotted Executioner 13714 | -1/Command | Destroyed Executioner 13730 | -1/Command | System corruption reached 10% 13730 | -1/Command | Spotted Executioner 13734 | -1/Command | Destroyed Executioner 13736 | -1/Command | Destroyed Striker 13760 | -1/Command | Destroyed 25 combat bots 13945 | -1/Command | Reached level 38 13947 | -1/Command | Spotted Executioner 13947 | -1/Command | Spotted Striker 13948 | -1/Command | Spotted Striker 13950 | -1/Command | Spotted Striker 13953 | -1/Command | Spotted Executioner 13954 | -1/Command | Destroyed Striker 13954 | -1/Command | Destroyed Striker 13954 | -1/Command | Spotted Striker 13956 | -1/Command | Destroyed Striker 13957 | -1/Command | Destroyed Executioner 13958 | -1/Command | Destroyed Executioner 13960 | -1/Command | Destroyed Striker 13961 | -1/Command | Spotted Striker 13968 | -1/Command | Destroyed Striker 13997 | -1/Command | Destroyed 34 combat bots 14102 | -1/Command | Build established: Scavenger-Mutant 14162 | -1/Command | Spotted Executioner 14164 | -1/Command | Spotted Executioner 14171 | -1/Command | Destroyed Executioner 14173 | -1/Command | Destroyed Executioner 14182 | -1/Command | Spotted Striker 14182 | -1/Command | Spotted Striker 14182 | -1/Command | Spotted Striker 14184 | -1/Command | Spotted Striker 14185 | -1/Command | Destroyed Striker 14187 | -1/Command | Spotted Striker 14188 | -1/Command | Destroyed Striker 14188 | -1/Command | Spotted Striker 14189 | -1/Command | Destroyed Striker 14189 | -1/Command | Destroyed Striker 14189 | -1/Command | Spotted Executioner 14191 | -1/Command | Destroyed Striker 14191 | -1/Command | Destroyed Striker 14194 | -1/Command | Destroyed Executioner 14209 | -1/Command | Spotted Executioner 14209 | -1/Command | Spotted Striker 14211 | -1/Command | Spotted Striker 14215 | -1/Command | Destroyed Striker 14216 | -1/Command | Emitted hypermatrix ping 14218 | -1/Command | Destroyed Executioner 14221 | -1/Command | Assembled emerged from beneath the floor 14225 | -1/Command | Destroyed Striker 14246 | -1/Command | Destroyed 34 combat bots 14481 | -1/Command | Spotted Executioner 14481 | -1/Command | Spotted Executioner 14482 | -1/Command | Spotted Striker 14483 | -1/Command | Destroyed Striker 14485 | -1/Command | Destroyed Executioner 14487 | -1/Command | Destroyed Striker 14492 | -1/Command | Destroyed Executioner 14553 | -1/Command | Assembled emerged from beneath the floor 14749 | -1/Command | Destroyed 69 combat bots 14987 | -1/Command | Reached level 39 15052 | -1/Command | Destroyed 71 combat bots 15126 | -1/Command | Used Core Regenerator, restored core integrity (+600) 15137 | -1/Command | Destroyed 9 combat bots 15303 | -1/Command | Destroyed 34 combat bots 15362 | -1/Command | Destroyed 18 combat bots 15445 | -1/Command | Destroyed 11 combat bots 15520 | -1/Command | Destroyed 15 combat bots 15576 | -1/Command | Assembled emerged from beneath the floor 15625 | -1/Command | Spotted Executioner 15638 | -1/Command | Destroyed Executioner 15718 | -1/Command | Spotted Striker 15723 | -1/Command | Allies destroyed Striker 15732 | -1/Command | Spotted Alpha 7 15738 | -1/Command | Spotted Executioner 15740 | -1/Command | Destroyed Executioner 15749 | -1/Command | Destroyed Alpha 7 15754 | -1/Command | Found Unknown Device 15754 | -1/Command | Identified Antimissile System 15756 | -1/Command | Found Prototype Device 15756 | -1/Command | Identified Exp. ECM Suite 15761 | -1/Command | Found Prototype Device 15761 | -1/Command | Identified Adv. Kinecellerator 15769 | -1/Command | Found Prototype Processor 15769 | -1/Command | Identified Exp. Target Analyzer 15794 | -1/Command | Destroyed Executioner 15800 | -1/Command | Spotted B-99 Colossus 15802 | -1/Command | Destroyed B-99 Colossus 15819 | -1/Command | Spotted Executioner 15822 | -1/Command | Destroyed Executioner 15866 | -1/Command | Spotted B-99 Colossus 15896 | -1/Command | Destroyed B-99 Colossus 15900 | -1/Command | Spotted Striker 15900 | -1/Command | Spotted Alpha 7 15902 | -1/Command | Destroyed Striker 15911 | -1/Command | Destroyed Alpha 7 15928 | -1/Command | Found Prototype Ballistic Gun 15928 | -1/Command | Identified Multirail 16053 | -1/Command | Found Prototype Slashing Weapon 16053 | -1/Command | Identified Vibroblade 16221 | -1/Command | Met MAIN.C 16411 | -1/Command | Build established: Scavenger-Scout 16489 | -1/Command | MAIN.C activated Command garrisons 16597 | -1/Command | Destroyed MAIN.C Shell 16950 | *** | Heading to fleet! Last Messages --------------- 16915_ HV Slug penetrates MAIN.C. 16915_ HV Slug penetrates Wall. 16916_ Acquired 6 matter. 16917_ HV Slug penetrates MAIN.C. 16917_ HV Slug penetrates Wall. 16917_ HV Slug penetrates MAIN.C. 16917_ HV Slug penetrates Wall. 16918_ Acquired 6 matter. 16919_ HV Slug penetrates MAIN.C. 16919_ HV Slug penetrates Wall. 16919_ HV Slug penetrates MAIN.C. 16919_ HV Slug penetrates Wall. 16920_ Acquired 6 matter. 16935_ HV Slug penetrates MAIN.C. 16935_ HV Slug penetrates Wall. 16935_ HV Slug penetrates MAIN.C. 16935_ HV Slug penetrates Wall. 16936_ Acquired 10 matter. 16938_ Acquired 3 matter. [Achievement: Death Machine] Map ----- +----------------------------------------------------+ | | | | | | | ##?#########################?####?###########??##? | | ##################?##########################?#### | | ##################################?##?####?####### | | #############################?#################### | | ## ######################################## | | ## ##############################?######## | | ## ""####################################### | | ## ""#####################################?# | | # T"#################?#################?### | | + ""##############################??####### | | # ""########################?############### | | # + ############################## | | # ### #########################?#### | | ######"##### ############################## | | #####"""#### ############################## | | =# # # ### ########################## | | # ! ###+###### ############ " " | | # # ### ########### "R" | | # = # ### ^^^ ^ # #%# # #### """ | | # ; ### ^ ^^=!*=*^ ####/### | | + # ### ^ ^^ ^ % *^^/ # | | ######"### ;;; ^ "" ^ ![!^[ ^^/ | | ##### # ;;; @" ! ! ^^^^ ^^^ / | | #!!= ;;; ^! ^^^^ ^/% | | ; *=! ### ^ ! =!!^!^ ^^ ^^^### | | ##### #*[%% ### ^^ !] !# # # ##### | | !########## [[ ### ! ############ != | | ##########!!! ### ! !#"########## !! | | # ##### ########; !] ######### =! | | # * ##### ################; # ###### | | # ##### #############"###!;; ###### | | # ######"#=######### [ ! ; ### | | # ##### !"########## / != ######### | | # ##### [!########## ######### | | +^ ##### #########" ########### ## | | # *#####"""########## ###########!# | | ###### "################+###########"####%# | | ##### * % ![* # | | " "T !!! ! ! [!%!# | | " "" =!]!* / ! !! *" | | ##### ! == = ! # | | ####### ############# =!!!######+## ###+#### | | ##########################! =*!## # # ## | | ##########################=]* [## # # ## | | ##########################[ |! ##! ! # # ## | | ##########################!**!!## # # ## | | ########################## =*|!## #*# ## | +----------------------------------------------------+ Best States ------------- Heat Dissipation 161 Energy Generation 94 Energy Capacity 1380 Matter Stores 476 Matter Capacity 750 Sight Range 17 Robot Scan Range 26 Terrain Scan Range 30 Terrain Scan Density 210 Cloak Strength 2 Power Amplification 50 Additional Mass Support 12 EM Shielding 4 Armor Coverage 150 Resistance: KI 25 Resistance: TH 50 Resistance: EX 20 Weapon Cycling 25 Evasion (%) 62 Targeting Accuracy 8 Target Analysis 12 Core Analysis 8 Matter Filtering 50 Energy Filtering 30 Kinecelleration 50 Offensive Hacking 21 Defensive Hacking 5 Item Schematics ----------------- Cmb. Linear Gravjet | -1/Command | Hacked Robot Schematics ------------------ None Fabricated ------------ Cmb. Gravmag System | x2 | -6/Factory Exp. Terrain Scanner | x1 | -5/Factory Cmb. Gravmag System | x2 | -3/Research Alien Tech Used ----------------- Matter Drive Integrated Dissipator Core Reset Matrix Sigix Quantum Sheargun LRC Storage Core Regenerator Achievements -------------- 404 Corridor Of Doom Death Machine Meet Your Maker Challenges ------------ None RPGLIKE | -11 -10 -10 -9 -9 -9 -8 -8 -7 -7 -7 -7 -6 -6 -6 -6 -6 -6 -5 -5 -5 -4 -3 -3 -3 -2 -2 -1 -1 --------- Run | Scr Mat Min Mat Min Exi Min Mat Fac Low Low Dat Pro Fac Ext Cet Arc Hub Fac Was Fac Fac Res Qua Sec Res Tes Acc Com Levels Raised 38 | . . . 2 1 1 . 2 3 1 1 . 4 2 1 1 . 1 1 . . 5 1 . 1 1 1 2 6 XP Earned 60987 | 3000 740 650 2955 1500 350 1200 3095 3855 1050 1550 650 5625 3048 1846 827 152 1174 1341 75 761 7138 1230 751 1594 1647 1026 2903 9254 XP Spent 59690 | 2575 . . 1200 500 4685 . 2850 2800 500 2570 . 1840 8380 1800 600 . . 2430 . 1250 5970 500 3045 1400 . 155 5320 9320 Upgrades 123 | 9 . . 3 1 8 . 15 8 4 3 . 3 14 2 1 . . 5 . 1 10 1 4 1 . 1 6 23 Power Slot 1 | . . . . . . . . . . . . . . . . . . . . . . 1 . . . . . . Propulsion Slot 5 | 1 . . . . . . . 1 . . . 1 . . . . . . . . . . . 1 . . 1 . Utility Slot 10 | 1 . . 1 . . . 1 . . 1 . . 3 . . . . . . . 1 . . . . . 1 1 Weapon Slot 5 | 1 . . . . 2 . . . . . . . . 1 . . . . . . . . 1 . . . . . Core Integrity 36 | 1 . . . . 1 . . . 2 . . . 2 . . . . 2 . . 4 . 1 . . 1 4 18 Heat Dissipation 16 | . . . . . . . 6 . . 1 . 1 5 . . . . . . . 3 . . . . . . . Energy Generation 1 | . . . . . . . . 1 . . . . . . . . . . . . . . . . . . . . Matter Storage 1 | . . . . . . . . 1 . . . . . . . . . . . . . . . . . . . . Mass Support 2 | 1 . . . . . . . . . . . . . . . . . . . . . . 1 . . . . . Inventory Capacity 5 | 1 . . . . 2 . . . . 1 . . . . . . . . . 1 . . . . . . . . Sight Range 1 | . . . . . . . 1 . . . . . . . . . . . . . . . . . . . . . Sensor Range 13 | . . . 1 . . . 7 5 . . . . . . . . . . . . . . . . . . . . Terrain Scan Density 2 | . . . . . . . . . 1 . . . 1 . . . . . . . . . . . . . . . Ranged Accuracy 5 | 1 . . . 1 . . . . . . . . . . 1 . . 1 . . 1 . . . . . . . Hack Attack % 3 | . . . . . . . . . . . . . 1 1 . . . . . . . . 1 . . . . . Hack Defense % 1 | . . . . . . . . . . . . . 1 . . . . . . . . . . . . . . . KI Resistance % 4 | 1 . . 1 . 2 . . . . . . . . . . . . . . . . . . . . . . . TH Resistance % 4 | 1 . . . . . . . . 1 . . 1 . . . . . 1 . . . . . . . . . . EX Resistance % 4 | . . . . . . . . . . . . . . . . . . . . . . . . . . . . 4 KI Damage % 4 | . . . . . 1 . . . . . . . 1 . . . . 1 . . 1 . . . . . . . Protomatter Created 16164 | . 27 59 40 69 4 124 105 125 88 134 . 512 309 443 121 . 502 43 171 . 2622 83 . 233 140 95 . 10115 Integrity Restored 16184 | . 81 425 183 223 . 369 297 220 189 81 . 870 258 229 209 . 507 129 248 78 1773 116 . 391 366 132 . 8810 Core 12530 | . 81 286 163 161 . 315 297 131 149 66 . 701 198 188 175 . 480 129 158 33 1356 92 . 265 333 68 . 6705 Parts 3654 | . . 139 20 62 . 54 . 89 40 15 . 169 60 41 34 . 27 . 90 45 417 24 . 126 33 64 . 2105 Protomatter Decayed 6278 | . . 61 39 2 . . 6 47 . 43 . 199 237 360 247 . 411 . 86 169 1183 663 . 182 17 4 . 2322 Game ------ Seed GammaAssembledNukerbomber Manual? 0 Play Time 05:36:45 Cumulative 382.0 hours Start 2021.06.11 @ 18:35:46 End 2021.06.12 @ 00:20:22 Sessions 1 Manual Loads 0 Difficulty Rogue Special Mode Winter2019/RPGLIKE Game No. 147 Rogue 147 Adventurer 0 Explorer 0 Win Type 2 Total 26 Types 22/0/3/1/0/0/0/0/0 Lore% 83 Gallery% 88 Achievement% 74 Wizard Run 0 Options --------- ASCII 0 Keyboard 0 Movement Mouse Keybinds 0 Fullscreen 2 Font 12/Smallcaps Map View 83x54 Tactical HUD 1 Map Filters NONE Filters NONE Steam X RUN: 4b33288d-a531-40a9-8299-01693d13c6f8